bitfinex-derivatives/quotes_BNBF0:USTF0_20250709
["timestamp","ask_amount","ask_price","bid_price","bid_amount"]
[1752095347662,0.26016552,669.21,668.47,1.54711092]
[1752095347865,0.26016552,669.21,668.48,1.54711092]
[1752095348166,0.26016552,669.21,668.49,1.54711092]
[1752095348367,0.26016552,669.21,668.5,1.54711092]
[1752095348666,0.26016552,669.21,668.51,1.54711092]
[1752095348962,0.26016552,669.21,668.52,1.54711092]
[1752095349162,0.26016552,669.21,668.53,1.54711092]
[1752095349362,0.26016552,669.21,668.54,1.54711092]
[1752095349561,0.26016552,669.21,668.55,1.54711092]
[1752095349764,0.26016552,669.21,668.56,1.54711092]
[1752095350069,0.26016552,669.21,668.57,1.54711092]
[1752095350364,0.26016552,669.21,668.58,1.54711092]
[1752095350564,0.26016552,669.21,668.59,1.54711092]
[1752095350764,0.26016552,669.21,668.6,1.54711092]
[1752095350963,0.26016552,669.21,668.61,1.54711092]
[1752095351166,0.26016552,669.21,668.41,2.815]
[1752095351364,0.26016552,669.21,668.42,1.54716573]
[1752095351568,0.26016552,669.21,668.43,1.54716573]
[1752095351868,0.26016552,669.21,668.44,1.54716573]
[1752095352069,0.26016552,669.21,668.45,1.54716573]
[1752095352270,0.26016552,669.21,668.46,1.54716573]
[1752095352470,0.26016552,669.21,668.47,1.54716573]
[1752095352770,0.26016552,669.21,668.48,1.54716573]
[1752095352965,0.26016552,669.21,668.49,1.54716573]
[1752095353169,0.26016552,669.21,668.5,1.54716573]
[1752095353369,0.26016552,669.21,668.51,1.54716573]
[1752095353568,0.26016552,669.21,668.52,1.54716573]
[1752095353767,0.26016552,669.21,668.53,1.54716573]
[1752095353966,0.26016552,669.21,668.54,1.54716573]
[1752095354172,0.26016552,669.21,668.55,1.54716573]
[1752095354471,0.26016552,669.21,668.56,1.54716573]
[1752095354767,0.26016552,669.21,668.57,1.54716573]
[1752095354968,0.26016552,669.21,668.58,1.54716573]
[1752095355171,0.26016552,669.21,668.59,1.54716573]
[1752095355371,0.26016552,669.21,668.6,1.54716573]
[1752095355571,0.26016552,669.21,668.61,1.54716573]
[1752095355770,0.26016552,669.21,668.41,2.815]
[1752095355771,0.26016552,669.21,668.62,1.54716573]
[1752095356071,0.26016552,669.21,668.63,1.54716573]
[1752095356270,0.26016552,669.21,668.64,1.54716573]
[1752095356572,0.26016552,669.21,668.65,1.54716573]
[1752095356773,0.26016552,669.21,668.66,1.54716573]
[1752095356973,0.26016552,669.21,668.67,1.54716573]
[1752095357272,0.26016552,669.21,668.68,1.54716573]
[1752095357469,0.26016552,669.21,668.69,1.54716573]
[1752095357669,0.26016552,669.21,668.7,1.54716573]
[1752095357871,0.26016552,669.21,668.41,2.815]
[1752095358073,0.26016552,669.21,668.42,1.54670698]
[1752095358273,0.26016552,669.21,668.43,1.54670698]
[1752095358570,0.26016552,669.21,668.44,1.54670698]
[1752095358773,0.26016552,669.21,668.45,1.54670698]
[1752095358973,0.26016552,669.21,668.46,1.54670698]
[1752095359175,0.26016552,669.21,668.47,1.54670698]
[1752095359374,0.26016552,669.21,668.48,1.54670698]
[1752095359672,0.26016552,669.21,668.49,1.54670698]
[1752095359869,0.26016552,669.21,668.5,1.54670698]
[1752095360073,0.26016552,669.21,668.51,1.54670698]
[1752095360373,0.26016552,669.21,668.52,1.54670698]
[1752095360573,0.26016552,669.21,668.53,1.54670698]
[1752095360772,0.26016552,669.21,668.54,1.54670698]
[1752095360973,0.26016552,669.21,668.55,1.54670698]
[1752095361174,0.26016552,669.21,668.56,1.54634324]
[1752095361374,0.26016552,669.21,668.41,2.815]
[1752095361375,0.26016552,669.21,668.57,1.54634324]
[1752095361574,0.26016552,669.21,668.58,1.54634324]
[1752095361774,0.26016552,669.21,668.59,1.54634324]
[1752095361975,0.26016552,669.21,668.6,1.54634324]
[1752095362171,0.26016552,669.21,668.61,1.54634324]
[1752095362476,0.26016552,669.21,668.62,1.54634324]
[1752095362675,0.26016552,669.21,668.31,1.67947812]
[1752095362676,0.26016552,669.21,668.63,1.54634324]
[1752095362875,0.26016552,669.21,668.64,1.54634324]
[1752095363073,0.26016552,669.21,668.65,1.54634324]
[1752095363376,0.26016552,669.21,668.66,1.54634324]
[1752095363576,0.26016552,669.21,668.67,1.54634324]
[1752095363776,0.26016552,669.21,668.68,1.54634324]
[1752095363978,0.26016552,669.21,668.69,1.54634324]
[1752095364177,0.26016552,669.21,668.31,1.67947812]
[1752095364476,0.26016552,669.21,668.32,1.54495056]
[1752095364772,0.26016552,669.21,668.33,1.54495056]
[1752095364972,0.26016552,669.21,668.34,1.54495056]
[1752095365172,0.26016552,669.21,668.35,1.54495056]
[1752095365372,0.26016552,669.21,668.36,1.54495056]
[1752095365571,0.26016552,669.21,668.37,1.54495056]
[1752095365772,0.26016552,669.21,668.38,1.54495056]
[1752095365976,0.26016552,669.21,668.39,1.54495056]
[1752095366173,0.26016552,669.21,668.4,1.54495056]
[1752095366371,0.26016552,669.21,668.41,1.54495056]
[1752095366572,0.26016552,669.21,668.42,1.54495056]
[1752095366878,0.26016552,669.21,668.43,1.54495056]
[1752095367177,0.26016552,669.21,668.44,1.54495056]
[1752095367472,0.26016552,669.21,668.45,1.54495056]
[1752095367674,0.26016552,669.21,668.46,1.54495056]
[1752095367879,3.34963873,669.42,668.47,1.54495056]
[1752095368179,0.26010524,669.32,668.48,1.54495056]
[1752095368380,0.26010524,669.32,668.49,1.54495056]
[1752095368581,0.26010524,669.32,668.5,1.54495056]
[1752095368878,0.26010524,669.32,668.51,1.54495056]
[1752095369077,0.26010524,669.32,668.52,1.54495056]
[1752095369277,0.26010524,669.32,668.53,1.54495056]
[1752095369480,0.26010524,669.32,668.54,1.54495056]
[1752095369682,0.26010524,669.32,668.55,1.54495056]
[1752095369877,0.26010524,669.32,668.56,1.54495056]
[1752095370079,0.26010524,669.32,668.57,1.54495056]
[1752095370281,0.26010524,669.32,668.58,1.54495056]
[1752095370577,0.26010524,669.32,668.59,1.54495056]
[1752095370783,0.26010524,669.32,668.6,1.54495056]
[1752095370981,0.26010524,669.32,668.42,1.67947812]
[1752095370982,0.26010524,669.32,668.61,1.54495056]
[1752095371181,0.26010524,669.32,668.62,1.54495056]
[1752095371480,0.26010524,669.32,668.63,1.54495056]
[1752095371678,0.26010524,669.32,668.64,1.54495056]
[1752095371877,0.26010524,669.32,668.42,1.67947812]
[1752095371878,0.26010524,669.32,668.65,1.54495056]
[1752095372083,0.26010524,669.32,668.66,1.54495056]
[1752095372382,0.26010524,669.32,668.67,1.54495056]
[1752095372682,0.26010524,669.32,668.68,1.54495056]
[1752095372879,0.26010524,669.32,668.69,1.54495056]
[1752095373078,0.26010524,669.32,668.7,1.54495056]
[1752095373377,0.26010524,669.32,668.71,1.54495056]
[1752095373579,0.26010524,669.32,668.72,1.54495056]
[1752095373883,0.26010524,669.32,668.44,1.67947812]
[1752095373884,0.26010524,669.32,668.73,1.54495056]
[1752095374083,0.26010524,669.32,668.74,1.54495056]
[1752095374285,0.26010524,669.32,668.41,1.67947812]
[1752095374481,0.26010524,669.32,668.42,1.54341928]
[1752095374681,0.26010524,669.32,668.43,1.54341928]
[1752095374984,0.26010524,669.32,668.44,1.54341928]
[1752095375181,0.26010524,669.32,668.45,1.54341928]
[1752095375380,0.26010524,669.32,668.46,1.54341928]
[1752095375584,0.26010524,669.32,668.47,1.54341928]
[1752095375781,0.26010524,669.32,668.48,1.54341928]
[1752095375985,0.26010524,669.32,668.49,1.54341928]
[1752095376184,0.26010524,669.32,668.5,1.54341928]
[1752095376484,0.26010524,669.32,668.51,1.54341928]
[1752095376689,0.26010524,669.32,668.52,1.54341928]
[1752095376985,0.26010524,669.32,668.53,1.54341928]
[1752095377184,0.26010524,669.32,668.54,1.54341928]
[1752095377388,0.26010524,669.32,668.55,1.54341928]
[1752095377588,0.26010524,669.32,668.56,1.54341928]
[1752095377789,0.26010524,669.32,668.57,1.54341928]
[1752095378088,0.26010524,669.32,668.58,1.54341928]
[1752095378285,0.26010524,669.32,668.59,1.54341928]
[1752095378484,0.26010524,669.32,668.6,1.54341928]
[1752095378688,0.26010524,669.32,668.61,1.54341928]
[1752095378889,0.26010524,669.32,668.62,1.54341928]
[1752095379189,0.26010524,669.32,668.63,1.54341928]
[1752095379384,0.26010524,669.32,668.64,1.54341928]
[1752095379584,0.26010524,669.32,668.65,1.54341928]
[1752095379788,0.26010524,669.32,668.66,1.54341928]
[1752095379987,0.26010524,669.32,668.67,1.54341928]
[1752095380191,0.26010524,669.32,668.68,1.54341928]
[1752095380387,0.26010524,669.32,668.69,1.54341928]
[1752095380591,0.26010524,669.32,668.7,1.54341928]
[1752095380788,0.26010524,669.32,668.71,1.54341928]
[1752095380992,0.26010524,669.32,668.72,1.54341928]
[1752095381191,0.26010524,669.32,668.73,1.54341928]
[1752095381487,0.26010524,669.32,668.46,1.67947812]
[1752095381791,0.26010524,669.32,668.47,1.54271671]
[1752095381989,0.26010524,669.32,668.48,1.54271671]
[1752095382192,0.26010524,669.32,668.49,1.54271671]
[1752095382493,0.26010524,669.32,668.5,3.22219483]
[1752095382792,0.26010524,669.32,668.53,1.67947812]
[1752095382990,0.26010524,669.32,668.54,1.54271671]
[1752095383191,0.26010524,669.32,668.55,1.54271671]
[1752095383390,0.26010524,669.32,668.56,1.54271671]
[1752095383591,0.26010524,669.32,668.57,1.54271671]
[1752095383891,0.26010524,669.32,668.58,1.54271671]
[1752095384100,0.26010524,669.32,668.59,1.54271671]
[1752095384296,0.26010524,669.32,668.6,1.54271671]
[1752095384496,0.26010524,669.32,668.61,1.54271671]
[1752095384797,0.26010524,669.32,668.62,1.54271671]
[1752095384992,0.26010524,669.32,668.63,1.54271671]
[1752095385292,0.26010524,669.32,668.64,1.54271671]
[1752095385492,0.26010524,669.32,668.65,1.54271671]
[1752095385696,0.26010524,669.32,668.66,1.54271671]
[1752095385992,0.26010524,669.32,668.67,1.54271671]
[1752095386193,0.26010524,669.32,668.68,1.54271671]
[1752095386397,0.26010524,669.32,668.69,1.54271671]
[1752095386594,0.26010524,669.32,668.7,1.54271671]
[1752095386798,0.26010524,669.32,668.71,1.54271671]
[1752095386998,0.26010524,669.32,668.72,1.54271671]
[1752095387198,0.26010524,669.32,668.73,1.54271671]
[1752095387395,0.26010524,669.32,668.74,1.54271671]
[1752095387598,0.26010524,669.32,668.75,1.54271671]
[1752095387795,0.26010524,669.32,668.76,1.54271671]
[1752095388001,0.26010524,669.32,668.77,1.54271671]
[1752095388203,0.26010524,669.32,668.78,1.54271671]
[1752095388497,0.26010524,669.32,668.79,1.54271671]
[1752095388697,0.26010524,669.32,668.37,1.924]
[1752095388903,0.26010524,669.32,668.51,1.67451671]
[1752095389100,0.26010524,669.32,668.52,1.54075661]
[1752095389306,0.26010524,669.32,668.53,1.54075661]
[1752095389507,0.26010524,669.32,668.54,1.54075661]
[1752095389706,0.26010524,669.32,668.55,1.54075661]
[1752095389906,0.26010524,669.32,668.56,1.54075661]
[1752095390102,0.26010524,669.32,668.57,1.54075661]
[1752095390307,0.26010524,669.32,668.58,1.54075661]
[1752095390508,0.26010524,669.32,668.59,1.54075661]
[1752095390708,0.26010524,669.32,668.6,1.54075661]
[1752095390908,0.26010524,669.32,668.61,1.54075661]
[1752095391106,0.26010524,669.32,668.62,1.54075661]
[1752095391311,0.26010524,669.32,668.63,1.54075661]
[1752095391505,0.26010524,669.32,668.64,1.54075661]
[1752095391710,3.34963873,669.56,668.65,1.54075661]
[1752095392008,3.34963873,669.56,668.49,1.67451671]
[1752095392009,0.26006345,669.43,668.66,1.54075661]
[1752095392215,0.26006345,669.43,668.67,1.54075661]
[1752095392413,0.26006345,669.43,668.68,1.54075661]
[1752095392610,0.26006345,669.43,668.69,1.54075661]
[1752095392814,0.26006345,669.43,668.7,1.54075661]
[1752095393111,0.26006345,669.43,668.71,1.54075661]
[1752095393315,0.26006345,669.43,668.72,1.54075661]
[1752095393516,0.26006345,669.43,668.73,1.54075661]
[1752095393716,0.26006345,669.43,668.74,1.54075661]
[1752095394031,0.26006345,669.43,668.75,1.54075661]
[1752095394311,0.26006345,669.43,668.76,1.54075661]
[1752095394612,0.26006345,669.43,668.77,1.54075661]
[1752095394912,0.26006345,669.43,668.78,1.54075661]
[1752095395212,3.34963873,669.63,668.79,1.54075661]
[1752095395512,0.26002458,669.51,668.8,1.54075661]
[1752095395716,0.26002458,669.51,668.81,1.54075661]
[1752095396013,0.26002458,669.51,668.82,1.54075661]
[1752095396217,0.26002458,669.51,668.83,1.54075661]
[1752095396511,0.26002458,669.51,668.84,1.54075661]
[1752095396712,0.26002458,669.51,668.85,1.54075661]
[1752095397011,0.26002458,669.51,668.86,1.54075661]
[1752095397210,0.26002458,669.51,668.87,1.54075661]
[1752095397415,0.26002458,669.51,668.88,1.54075661]
[1752095397712,0.26002458,669.51,668.63,1.67451671]
[1752095397912,0.26002458,669.51,668.64,1.54473805]
[1752095398116,0.26002458,669.51,668.65,1.54473805]
[1752095398316,0.26002458,669.51,668.66,1.54473805]
[1752095398510,0.26002458,669.51,668.67,1.54473805]
[1752095398711,0.26002458,669.51,668.68,1.54473805]
[1752095398915,0.26002458,669.51,668.69,1.54473805]
[1752095399113,0.26002458,669.51,668.7,1.54473805]
[1752095399313,0.26002458,669.51,668.71,1.54473805]
[1752095399615,0.26002458,669.51,668.72,1.54473805]
[1752095399813,0.26002458,669.51,668.73,1.54473805]
[1752095400012,0.26002458,669.51,668.74,1.54473805]
[1752095400217,0.26002458,669.51,668.75,1.54473805]
[1752095400518,0.26002458,669.51,668.76,1.54473805]
[1752095400813,0.26002458,669.51,668.77,1.54473805]
[1752095401012,0.26002458,669.51,668.78,1.54473805]
[1752095401217,0.26002458,669.51,668.79,1.54473805]
[1752095401417,0.26002458,669.51,668.8,1.54473805]
[1752095401615,0.26002458,669.51,668.81,1.54473805]
[1752095401811,0.26002458,669.51,668.62,1.67451671]
[1752095401812,0.26002458,669.51,668.82,1.54473805]
[1752095402017,0.26002458,669.51,668.83,1.54473805]
[1752095402217,0.26002458,669.51,668.84,1.54473805]
[1752095402418,0.26002458,669.51,668.85,1.54473805]
[1752095402616,0.26002458,669.51,668.86,1.54473805]
[1752095402820,0.26002458,669.51,668.87,1.54473805]
[1752095403119,0.26002458,669.51,668.88,1.54473805]
[1752095403317,0.26002458,669.51,668.89,1.54473805]
[1752095403520,0.26002458,669.51,668.61,1.67451671]
[1752095403820,0.26002458,669.51,668.62,1.54362884]
[1752095404020,0.26002458,669.51,668.63,1.54362884]
[1752095404221,0.26002458,669.51,668.64,1.54362884]
[1752095404516,0.26002458,669.51,668.65,1.54362884]
[1752095404716,0.26002458,669.51,668.66,1.54362884]
[1752095404921,0.26002458,669.51,668.67,1.54362884]
[1752095405220,0.26002458,669.51,668.68,1.54362884]
[1752095405419,0.26002458,669.51,668.69,1.54362884]
[1752095405620,0.26002458,669.51,668.7,1.54362884]
[1752095405818,0.26002458,669.51,668.71,1.54362884]
[1752095406020,0.26002458,669.51,668.72,1.54362884]
[1752095406220,0.26002458,669.51,668.73,1.54362884]
[1752095406420,0.26002458,669.51,668.74,1.54362884]
[1752095406617,0.26002458,669.51,668.75,1.54362884]
[1752095406822,0.26002458,669.51,668.76,1.54362884]
[1752095407022,0.26002458,669.51,668.77,1.54362884]
[1752095407221,0.26002458,669.51,668.78,1.54362884]
[1752095407520,0.26002458,669.51,668.79,1.54362884]
[1752095407721,0.26002458,669.51,668.8,1.54362884]
[1752095407920,0.26002458,669.51,668.81,1.54362884]
[1752095408117,0.26002458,669.51,668.82,1.54362884]
[1752095408319,0.26002458,669.51,668.83,1.54362884]
[1752095408522,0.26002458,669.51,668.84,1.54362884]
[1752095408721,0.26002458,669.51,668.85,1.54362884]
[1752095408924,0.26002458,669.51,668.86,1.54362884]
[1752095409124,0.26002458,669.51,668.87,1.54362884]
[1752095409321,0.26002458,669.51,668.88,1.54362884]
[1752095409522,0.26002458,669.51,668.89,1.54362884]
[1752095409722,0.26002458,669.51,668.9,1.54362884]
[1752095409922,0.26002458,669.51,668.91,1.54362884]
[1752095410123,0.26002458,669.51,668.87,2.425]
[1752095410326,0.26002458,669.51,668.88,1.5424657]
[1752095410527,0.26002458,669.51,668.89,1.5424657]
[1752095410722,0.26002458,669.51,668.9,1.5424657]
[1752095410923,0.26002458,669.51,668.91,1.5424657]
[1752095411223,0.26002458,669.51,668.92,1.5424657]
[1752095411426,0.26002458,669.51,668.87,2.425]
[1752095411627,0.26002458,669.51,668.88,1.54257856]
[1752095411826,0.26002458,669.51,668.89,1.54257856]
[1752095412025,0.26002458,669.51,668.9,1.54257856]
[1752095412224,0.26002458,669.51,668.91,1.54257856]
[1752095412427,0.26002458,669.51,668.92,1.54257856]
[1752095412628,0.26002458,669.51,668.87,2.425]
[1752095412828,0.26002458,669.51,668.88,1.54256093]
[1752095413027,0.26002458,669.51,668.87,2.425]
[1752095413028,0.26002458,669.51,668.89,1.54256093]
[1752095413227,0.26002458,669.51,668.9,1.54256093]
[1752095413428,0.26002458,669.51,668.91,1.54256093]
[1752095413728,0.26002458,669.51,668.92,1.54256093]
[1752095413929,0.26002458,669.51,668.87,2.425]
[1752095414130,0.26002458,669.51,668.88,1.54264312]
[1752095414326,0.26002458,669.51,668.89,1.54264312]
[1752095414630,0.26002458,669.51,668.9,1.54264312]
[1752095414830,0.26002458,669.51,668.91,1.54264312]
[1752095415031,0.26002458,669.51,668.92,1.54264312]
[1752095415232,0.26002458,669.51,668.87,2.425]
[1752095415432,0.26002458,669.51,668.88,1.54286249]
[1752095415633,0.26002458,669.51,668.89,1.54286249]
[1752095415933,0.26002458,669.51,668.9,1.54286249]
[1752095416133,0.26002458,669.51,668.91,1.54286249]
[1752095416432,0.26002458,669.51,668.92,1.54286249]
[1752095416632,0.26002458,669.51,668.87,2.425]
[1752095416933,0.26002458,669.51,668.88,1.54288363]
[1752095417229,0.26002458,669.51,668.89,1.54288363]
[1752095417433,0.26002458,669.51,668.9,1.54288363]
[1752095417733,0.26002458,669.51,668.91,1.54288363]
[1752095417928,0.26002458,669.51,668.92,1.54288363]
[1752095418232,0.26002458,669.51,668.87,2.425]
[1752095418433,0.26002458,669.51,668.88,1.54208448]
[1752095418629,0.26002458,669.51,668.89,1.54208448]
[1752095418830,0.26002458,669.51,668.9,1.54208448]
[1752095419032,0.26002458,669.51,668.91,1.54208448]
[1752095419229,0.26002458,669.51,668.92,1.54208448]
[1752095419433,0.26002458,669.51,668.87,2.425]
[1752095419629,0.26002458,669.51,668.88,1.54221932]
[1752095419831,0.26002458,669.51,668.89,1.54221932]
[1752095420033,0.26002458,669.51,668.9,1.54221932]
[1752095420234,0.26002458,669.51,668.91,1.54221932]
[1752095420434,0.26002458,669.51,668.87,2.425]
[1752095420635,0.26002458,669.51,668.88,1.54228851]
[1752095420835,0.26002458,669.51,668.89,1.54228851]
[1752095421131,0.26002458,669.51,668.9,1.54228851]
[1752095421431,0.26002458,669.51,668.91,1.54228851]
[1752095421630,0.26002458,669.51,668.87,2.425]
[1752095421828,0.26002458,669.51,668.88,1.5426806]
[1752095422032,0.26002458,669.51,668.89,1.5426806]
[1752095422234,0.26002458,669.51,668.9,1.5426806]
[1752095422435,0.26002458,669.51,668.91,1.5426806]
[1752095422635,0.26002458,669.51,668.87,2.425]
[1752095422835,0.26002458,669.51,668.88,1.54335986]
[1752095423031,0.26002458,669.51,668.89,1.54335986]
[1752095423231,0.26002458,669.51,668.9,1.54335986]
[1752095423531,0.26002458,669.51,668.91,1.54335986]
[1752095423734,0.26002458,669.51,668.87,2.425]
[1752095423933,0.26002458,669.51,668.88,1.54353533]
[1752095424135,0.26002458,669.51,668.89,1.54353533]
[1752095424335,0.26002458,669.51,668.9,1.54353533]
[1752095424632,0.26002458,669.51,668.91,1.54353533]
[1752095424832,0.26002458,669.51,668.87,2.425]
[1752095425135,0.26002458,669.51,668.88,1.54362602]
[1752095425336,0.26002458,669.51,668.89,1.54362602]
[1752095425532,0.26002458,669.51,668.9,1.54380896]
[1752095425736,0.26002458,669.51,668.91,1.54380896]
[1752095425936,0.26002458,669.51,668.87,2.425]
[1752095426237,0.26002458,669.51,668.88,1.54380896]
[1752095426439,0.26002458,669.51,668.89,1.54380896]
[1752095426738,0.26002458,669.51,668.9,1.54380896]
[1752095426936,0.26002458,669.51,668.91,1.54380896]
[1752095427138,0.26002458,669.51,668.87,2.425]
[1752095427337,0.26002458,669.51,668.88,1.54424161]
[1752095427534,0.26002458,669.51,668.89,1.54424161]
[1752095427734,0.26002458,669.51,668.87,2.425]
[1752095427735,0.26002458,669.51,668.9,1.54424161]
[1752095427940,0.26002458,669.51,668.91,1.54424161]
[1752095428138,0.26002458,669.51,668.87,2.425]
[1752095428339,0.26002458,669.51,668.88,1.54433163]
[1752095428542,0.26002458,669.51,668.89,1.54433163]
[1752095428842,0.26002458,669.51,668.9,1.54433163]
[1752095429039,0.26002458,669.51,668.91,1.54433163]
[1752095429238,0.26002458,669.51,668.87,2.425]
[1752095429442,0.26002458,669.51,668.88,1.54444679]
[1752095429642,0.26002458,669.51,668.89,1.54444679]
[1752095429843,0.26002458,669.51,668.9,1.54444679]
[1752095430040,0.26002458,669.51,668.91,1.54444679]
[1752095430241,0.26002458,669.51,668.87,2.425]
[1752095430440,0.26002458,669.51,668.88,1.54456812]
[1752095430643,0.26002458,669.51,668.89,1.54456812]
[1752095430840,0.26002458,669.51,668.87,2.425]
[1752095430841,0.26002458,669.51,668.9,1.54456812]
[1752095431040,0.26002458,669.51,668.91,1.54456812]
[1752095431242,0.26002458,669.51,668.87,2.425]
[1752095431545,0.26002458,669.51,668.88,1.54470308]
[1752095431845,0.26002458,669.51,668.89,1.54470308]
[1752095432045,0.26002458,669.51,668.9,1.54470308]
[1752095432246,0.26002458,669.51,668.91,1.54470308]
[1752095432445,0.26002458,669.51,668.87,2.425]
[1752095432642,0.26002458,669.51,668.88,1.54507084]
[1752095432840,0.26002458,669.51,668.89,1.54507084]
[1752095433145,0.26002458,669.51,668.9,1.54507084]
[1752095433343,0.26002458,669.51,668.91,1.54507084]
[1752095433546,0.26002458,669.51,668.87,2.425]
[1752095433745,0.26002458,669.51,668.88,1.54523627]
[1752095434043,0.26002458,669.51,668.89,1.54523627]
[1752095434242,0.26002458,669.51,668.9,1.54523627]
[1752095434446,0.26002458,669.51,668.91,1.54523627]
[1752095434640,0.26002458,669.51,668.92,1.54523627]
[1752095434847,0.26002458,669.51,668.87,2.425]
[1752095435141,0.26002458,669.51,668.88,1.54546968]
[1752095435341,0.26002458,669.51,668.89,1.54546968]
[1752095435543,0.26002458,669.51,668.9,1.54546968]
[1752095435747,0.26002458,669.51,668.91,1.54546968]
[1752095435950,0.26002458,669.51,668.92,1.54546968]
[1752095436145,0.26002458,669.51,668.87,2.425]
[1752095436350,0.26002458,669.51,668.88,1.54590471]
[1752095436651,0.26002458,669.51,668.89,1.54590471]
[1752095436850,0.26002458,669.51,668.9,1.54590471]
[1752095437047,0.26002458,669.51,668.91,1.54590491]
[1752095437246,0.26002458,669.51,668.92,1.54590491]
[1752095437549,0.26002458,669.51,668.93,1.54590491]
[1752095437747,0.26002458,669.51,668.87,2.425]
[1752095437951,0.26002458,669.51,668.88,1.5461263]
[1752095438150,0.26002458,669.51,668.89,1.5461263]
[1752095438347,0.26002458,669.51,668.9,1.5461263]
[1752095438551,0.26002458,669.51,668.91,1.5461263]
[1752095438749,0.26002458,669.51,668.92,1.5461263]
[1752095438952,0.26002458,669.51,668.93,1.5461263]
[1752095439152,0.26002458,669.51,668.94,1.5461263]
[1752095439353,0.26002458,669.51,668.87,2.425]
[1752095439557,0.26002458,669.51,668.88,1.5464727]
[1752095439755,0.26002458,669.51,668.89,1.5464727]
[1752095439955,0.26002458,669.51,668.9,1.5464727]
[1752095440151,0.26002458,669.51,668.91,1.5464727]
[1752095440352,0.26002458,669.51,668.92,1.5464727]
[1752095440652,0.26002458,669.51,668.87,2.425]
[1752095440852,0.26002458,669.51,668.88,1.54673658]
[1752095441055,0.26002458,669.51,668.89,1.54673658]
[1752095441254,0.26002458,669.51,668.9,1.54673658]
[1752095441451,0.26002458,669.51,668.91,1.54673658]
[1752095441755,0.26002458,669.51,668.92,1.54673658]
[1752095441952,0.26002458,669.51,668.93,1.54673658]
[1752095442256,0.26002458,669.51,668.94,1.54734817]
[1752095442456,0.26002458,669.51,668.87,2.425]
[1752095442652,0.26002458,669.51,668.88,1.54737072]
[1752095442854,0.26002458,669.51,668.89,1.54737072]
[1752095443054,0.26002458,669.51,668.9,1.54737072]
[1752095443253,0.26002458,669.51,668.91,1.54737072]
[1752095443559,0.26002458,669.51,668.92,1.54737072]
[1752095443752,0.26002458,669.51,668.93,1.54737072]
[1752095443952,0.26002458,669.51,668.94,1.54737072]
[1752095444157,0.26002458,669.51,668.87,2.425]
[1752095444357,0.26002458,669.51,668.88,1.54763272]
[1752095444555,0.26002458,669.51,668.89,1.54763272]
[1752095444753,0.26002458,669.51,668.9,1.54763272]
[1752095444955,0.26002458,669.51,668.91,1.54763272]
[1752095445154,0.26002458,669.51,668.92,1.54763272]
[1752095445353,0.26002458,669.51,668.87,2.425]
[1752095445354,0.26002458,669.51,668.93,1.54763272]
[1752095445658,0.26002458,669.51,668.94,1.54763272]
[1752095445860,0.26002458,669.51,668.87,2.425]
[1752095446154,0.26002458,669.51,668.88,1.54777146]
[1752095446358,0.26002458,669.51,668.89,1.54777146]
[1752095446658,0.26002458,669.51,668.9,1.54777146]
[1752095446858,0.26002458,669.51,668.91,1.54777146]
[1752095447059,0.26002458,669.51,668.92,1.54777146]
[1752095447354,0.26002458,669.51,668.93,1.54777146]
[1752095447558,0.26002458,669.51,668.94,1.54777146]
[1752095447855,0.26002458,669.51,668.95,1.54777146]
[1752095448059,0.26002458,669.51,668.87,2.425]
[1752095448358,0.26002458,669.51,668.88,1.54808359]
[1752095448559,0.26002458,669.51,668.89,1.54808359]
[1752095448759,0.26002458,669.51,668.9,1.54808359]
[1752095448958,0.26002458,669.51,668.91,1.54808359]
[1752095449258,0.26002458,669.51,668.92,1.54808359]
[1752095449455,0.26002458,669.51,668.93,1.54808359]
[1752095449659,0.26002458,669.51,668.94,1.54808359]
[1752095449854,0.26002458,669.51,668.95,1.54808359]
[1752095450056,0.26002458,669.51,668.96,1.54808359]
[1752095450260,0.26002458,669.51,668.87,2.425]
[1752095450559,0.26002458,669.51,668.88,1.54868839]
[1752095450755,0.26002458,669.51,668.89,1.54868839]
[1752095450956,0.26002458,669.51,668.9,1.54868839]
[1752095451255,0.26002458,669.51,668.91,1.54868839]
[1752095451454,0.26002458,669.51,668.92,1.54868839]
[1752095451659,0.26002458,669.51,668.93,1.54868839]
[1752095451856,0.26002458,669.51,668.94,1.54868839]
[1752095452059,0.26002458,669.51,668.95,1.54868839]
[1752095452355,0.26002458,669.51,668.96,1.54868839]
[1752095452657,0.26002458,669.51,668.97,1.54868839]
[1752095452860,0.26002458,669.51,668.98,1.54868839]
[1752095453060,0.26002458,669.51,668.87,2.425]
[1752095453261,0.26002458,669.51,668.88,1.54928145]
[1752095453559,0.26002458,669.51,668.89,1.54928145]
[1752095453760,0.26002458,669.51,668.9,1.54928145]
[1752095453959,0.26002458,669.51,668.91,1.54928145]
[1752095454259,0.26002458,669.51,668.92,1.54928145]
[1752095454455,0.26002458,669.51,668.93,1.54928145]
[1752095454755,0.26002458,669.51,668.94,1.54928145]
[1752095455059,0.26002458,669.51,668.95,1.54928145]
[1752095455255,3.34963873,669.37,668.87,2.425]
[1752095456257,3.34963873,669.38,668.87,2.425]
[1752095456961,3.34963873,669.39,668.87,2.425]
[1752095457258,3.34963873,669.4,668.87,2.425]